[Event "*** SCC Grand Prix: Titled Tuesday Blitz"]
[Site "Chess.com"]
[Date "2020.07.14"]
[Round "6"]
[White "Nathan_Filgueiras"]
[Black "Chessbard1972"]
[Result "1-0"]
[WhiteElo "2416"]
[BlackElo "2257"]
[TimeControl "180+1"]
[EndTime "11:09:09 PDT"]
[Termination "Nathan_Filgueiras won by checkmate"]

1. e4 {[%clk 0:03:00.9]} 1... c5 {[%clk 0:02:55.1]} 2. Nf3 {[%clk 0:03:00.8]}
2... a6 {[%clk 0:02:54.5]} 3. Nc3 {[%clk 0:02:59.4]} 3... e6 {[%clk 0:02:54]} 4.
d4 {[%clk 0:02:59.7]} 4... cxd4 {[%clk 0:02:53.9]} 5. Nxd4 {[%clk 0:02:57.5]}
5... Nc6 {[%clk 0:02:54.8]} 6. Be3 {[%clk 0:02:54.4]} 6... Qc7 {[%clk
0:02:54.4]} 7. Be2 {[%clk 0:02:53.1]} 7... Nf6 {[%clk 0:02:53.4]} 8. O-O {[%clk
0:02:53]} 8... Bb4 {[%clk 0:02:53.1]} 9. Nxc6 {[%clk 0:02:52.9]} 9... bxc6
{[%clk 0:02:50.4]} 10. f4 {[%clk 0:02:52.7]} 10... Bxc3 {[%clk 0:02:44.6]} 11.
bxc3 {[%clk 0:02:53.6]} 11... Nxe4 {[%clk 0:02:44.4]} 12. Bd3 {[%clk 0:02:50.9]}
12... Nxc3 {[%clk 0:02:36.6]} 13. Qg4 {[%clk 0:02:49.9]} 13... Nd5 {[%clk
0:02:03.3]} 14. Qxg7 {[%clk 0:02:10]} 14... Rf8 {[%clk 0:01:59.3]} 15. Bd4
{[%clk 0:01:42.9]} 15... c5 {[%clk 0:01:57.3]} 16. Bb2 {[%clk 0:01:09.2]} 16...
Bb7 {[%clk 0:01:55]} 17. Rae1 {[%clk 0:01:04.8]} 17... O-O-O {[%clk 0:01:51.4]}
18. c4 {[%clk 0:00:55.2]} 18... Nb4 {[%clk 0:01:43.4]} 19. Be4 {[%clk
0:00:51.4]} 19... f5 {[%clk 0:01:32.9]} 20. Bxb7+ {[%clk 0:00:49.9]} 20... Qxb7
{[%clk 0:01:31.9]} 21. Re2 {[%clk 0:00:37.3]} 21... Rg8 {[%clk 0:01:26.6]} 22.
Qe7 {[%clk 0:00:30.1]} 22... Qc6 {[%clk 0:01:17.7]} 23. a3 {[%clk 0:00:27.1]}
23... Nd3 {[%clk 0:01:14.8]} 24. Bc3 {[%clk 0:00:18.2]} 24... Rde8 {[%clk
0:01:09.9]} 25. Qxh7 {[%clk 0:00:18]} 25... Rh8 {[%clk 0:01:02.8]} 26. Qg7
{[%clk 0:00:16.2]} 26... Reg8 {[%clk 0:01:02.4]} 27. Qe7 {[%clk 0:00:16.2]}
27... Rh6 {[%clk 0:00:52.7]} 28. Qf7 {[%clk 0:00:09.2]} 28... Rhg6 {[%clk
0:00:50.1]} 29. g3 {[%clk 0:00:08.6]} 29... Qc7 {[%clk 0:00:23.3]} 30. Be5
{[%clk 0:00:05.9]} 30... Nxe5 {[%clk 0:00:16.4]} 31. Rxe5 {[%clk 0:00:06.8]}
31... d6 {[%clk 0:00:14]} 32. Qxc7+ {[%clk 0:00:04.7]} 32... Kxc7 {[%clk
0:00:13.9]} 33. Re3 {[%clk 0:00:05]} 33... Rb8 {[%clk 0:00:10.9]} 34. Rfe1
{[%clk 0:00:05.6]} 34... Kd7 {[%clk 0:00:10.4]} 35. Rd1 {[%clk 0:00:05.1]} 35...
Rb6 {[%clk 0:00:08.4]} 36. Red3 {[%clk 0:00:05.3]} 36... a5 {[%clk 0:00:07.9]}
37. Kg2 {[%clk 0:00:05.6]} 37... Kc7 {[%clk 0:00:07.6]} 38. Kf3 {[%clk
0:00:05.7]} 38... Rg8 {[%clk 0:00:06.4]} 39. h4 {[%clk 0:00:06.1]} 39... Rh8
{[%clk 0:00:06]} 40. R1d2 {[%clk 0:00:04.3]} 40... a4 {[%clk 0:00:05.7]} 41. Re2
{[%clk 0:00:04.5]} 41... Kd7 {[%clk 0:00:03.1]} 42. Rde3 {[%clk 0:00:04.5]}
42... Rb3 {[%clk 0:00:02.5]} 43. Rxb3 {[%clk 0:00:04.1]} 43... axb3 {[%clk
0:00:02.6]} 44. Rb2 {[%clk 0:00:04.7]} 44... Rb8 {[%clk 0:00:03]} 45. g4 {[%clk
0:00:05]} 45... Kc6 {[%clk 0:00:03.9]} 46. g5 {[%clk 0:00:04.7]} 46... Kd7
{[%clk 0:00:02.7]} 47. h5 {[%clk 0:00:04.7]} 47... Ke7 {[%clk 0:00:03.6]} 48. h6
{[%clk 0:00:04.2]} 48... Kf7 {[%clk 0:00:04.5]} 49. Ke3 {[%clk 0:00:03.8]} 49...
Kg6 {[%clk 0:00:05.4]} 50. Kd3 {[%clk 0:00:04.2]} 50... Rb7 {[%clk 0:00:06.3]}
51. Kc3 {[%clk 0:00:04.4]} 51... d5 {[%clk 0:00:07.2]} 52. cxd5 {[%clk
0:00:04.5]} 52... exd5 {[%clk 0:00:06.8]} 53. Rxb3 {[%clk 0:00:05]} 53... d4+
{[%clk 0:00:06.6]} 54. Kc4 {[%clk 0:00:03.8]} 54... Re7 {[%clk 0:00:05.6]} 55.
Rb6+ {[%clk 0:00:03.4]} 55... Kh7 {[%clk 0:00:05.1]} 56. Rd6 {[%clk 0:00:02.3]}
56... Re4 {[%clk 0:00:04.5]} 57. Kxc5 {[%clk 0:00:02.6]} 57... Rxf4 {[%clk
0:00:04.5]} 58. Rxd4 {[%clk 0:00:03.2]} 58... Rf1 {[%clk 0:00:03.9]} 59. Rd7+
{[%clk 0:00:03.4]} 59... Kg6 {[%clk 0:00:02.6]} 60. Rg7+ {[%clk 0:00:03.9]}
60... Kh5 {[%clk 0:00:02.5]} 61. h7 {[%clk 0:00:04.3]} 61... Kg4 {[%clk
0:00:01.7]} 62. h8=Q {[%clk 0:00:04.3]} 62... Rg1 {[%clk 0:00:02.2]} 63. Qc8
{[%clk 0:00:03.9]} 63... Rc1+ {[%clk 0:00:02.9]} 64. Kd6 {[%clk 0:00:03.9]}
64... Rxc8 {[%clk 0:00:03.4]} 65. a4 {[%clk 0:00:04.3]} 65... Ra8 {[%clk
0:00:04.3]} 66. Ke5 {[%clk 0:00:04.3]} 66... Rxa4 {[%clk 0:00:05.2]} 67. Rd7
{[%clk 0:00:03.8]} 67... Ra5+ {[%clk 0:00:06.1]} 68. Rd5 {[%clk 0:00:04]} 68...
f4 {[%clk 0:00:07]} 69. Rxa5 {[%clk 0:00:03.6]} 69... f3 {[%clk 0:00:07.1]} 70.
Ke4 {[%clk 0:00:02.6]} 70... f2 {[%clk 0:00:08]} 71. Ra1 {[%clk 0:00:02.9]}
71... f1=Q {[%clk 0:00:07.5]} 72. Rxf1 {[%clk 0:00:03.5]} 72... Kxg5 {[%clk
0:00:07.7]} 73. Rg1+ {[%clk 0:00:04]} 73... Kf6 {[%clk 0:00:07.4]} 74. Rg4
{[%clk 0:00:04.5]} 74... Ke6 {[%clk 0:00:07.4]} 75. Rg6+ {[%clk 0:00:04.9]}
75... Kd7 {[%clk 0:00:08.3]} 76. Kf5 {[%clk 0:00:05.4]} 76... Kc7 {[%clk
0:00:09.2]} 77. Rf6 {[%clk 0:00:06.3]} 77... Kb7 {[%clk 0:00:10.1]} 78. Re6
{[%clk 0:00:07.1]} 78... Ka7 {[%clk 0:00:10.9]} 79. Ke5 {[%clk 0:00:08]} 79...
Kb7 {[%clk 0:00:11.7]} 80. Kd5 {[%clk 0:00:08.9]} 80... Kc7 {[%clk 0:00:12.6]}
81. Rd6 {[%clk 0:00:09.8]} 81... Kb7 {[%clk 0:00:12.4]} 82. Kc5 {[%clk
0:00:10.7]} 82... Ka7 {[%clk 0:00:12.5]} 83. Rb6 {[%clk 0:00:10.9]} 83... Ka8
{[%clk 0:00:12]} 84. Kc6 {[%clk 0:00:11.8]} 84... Ka7 {[%clk 0:00:12.7]} 85. Kc7
{[%clk 0:00:12.7]} 85... Ka8 {[%clk 0:00:12.6]} 86. Ra6# {[%clk 0:00:13.4]} 1-0

[Event "*** SCC Grand Prix: Titled Tuesday Blitz"]
[Site "Chess.com"]
[Date "2020.07.14"]
[Round "6"]
[White "KingCrusher275"]
[Black "Sergey85Rodchenkov"]
[Result "1/2-1/2"]
[WhiteElo "2374"]
[BlackElo "2517"]
[TimeControl "180+1"]
[EndTime "11:09:21 PDT"]
[Termination "Game drawn by repetition"]

1. d4 {[%clk 0:03:00.9]} 1... Nf6 {[%clk 0:02:59.6]} 2. c4 {[%clk 0:03:01]} 2...
e6 {[%clk 0:02:59.6]} 3. Nc3 {[%clk 0:03:01.2]} 3... Bb4 {[%clk 0:02:59.3]} 4.
Qc2 {[%clk 0:03:01.8]} 4... c5 {[%clk 0:02:58.2]} 5. dxc5 {[%clk 0:02:58.7]}
5... Na6 {[%clk 0:02:56.7]} 6. a3 {[%clk 0:02:57.2]} 6... Bxc3+ {[%clk
0:02:54.5]} 7. Qxc3 {[%clk 0:02:57.3]} 7... Nxc5 {[%clk 0:02:55]} 8. Nf3 {[%clk
0:02:51.9]} 8... O-O {[%clk 0:02:53.6]} 9. e3 {[%clk 0:02:43.9]} 9... b6 {[%clk
0:02:53.3]} 10. Be2 {[%clk 0:02:43.5]} 10... Bb7 {[%clk 0:02:53.5]} 11. O-O
{[%clk 0:02:41.2]} 11... Rc8 {[%clk 0:02:53.5]} 12. b4 {[%clk 0:02:30.3]} 12...
Nce4 {[%clk 0:02:52.8]} 13. Qd4 {[%clk 0:02:21.7]} 13... d5 {[%clk 0:02:47.8]}
14. cxd5 {[%clk 0:02:12]} 14... Qxd5 {[%clk 0:02:38]} 15. Bb2 {[%clk 0:02:01.5]}
15... Rfd8 {[%clk 0:02:36]} 16. Rac1 {[%clk 0:01:34.8]} 16... h6 {[%clk
0:02:34]} 17. Rxc8 {[%clk 0:01:31.9]} 17... Rxc8 {[%clk 0:02:32.6]} 18. Rc1
{[%clk 0:01:22.4]} 18... Rxc1+ {[%clk 0:02:24.5]} 19. Bxc1 {[%clk 0:01:21.8]}
19... Qxd4 {[%clk 0:02:11.6]} 20. Nxd4 {[%clk 0:01:19]} 20... Nc3 {[%clk
0:02:10.4]} 21. Bf1 {[%clk 0:01:06.2]} 21... Nfd5 {[%clk 0:01:51.4]} 22. Nb5
{[%clk 0:00:50.5]} 22... Nxb5 {[%clk 0:01:44.5]} 23. Bxb5 {[%clk 0:00:51.4]}
23... Nc3 {[%clk 0:01:40.6]} 24. Bf1 {[%clk 0:00:46.4]} 24... Bd5 {[%clk
0:01:35.1]} 25. Bb2 {[%clk 0:00:43.7]} 25... Ne4 {[%clk 0:01:26.8]} 26. Be5
{[%clk 0:00:39.7]} 26... Nd2 {[%clk 0:01:22.2]} 27. Ba6 {[%clk 0:00:32.3]} 27...
Bc4 {[%clk 0:01:09.4]} 28. b5 {[%clk 0:00:20.5]} 28... Nb1 {[%clk 0:00:52.7]}
29. a4 {[%clk 0:00:20.9]} 29... Bb3 {[%clk 0:00:52.5]} 30. Bb8 {[%clk
0:00:19.2]} 30... Nc3 {[%clk 0:00:46.8]} 31. a5 {[%clk 0:00:12.1]} 31... Bc4
{[%clk 0:00:36.2]} 32. Bxa7 {[%clk 0:00:10.3]} 32... bxa5 {[%clk 0:00:33.9]} 33.
Bb6 {[%clk 0:00:04.1]} 33... a4 {[%clk 0:00:32.1]} 34. Bc5 {[%clk 0:00:04.2]}
34... Bxb5 {[%clk 0:00:28.4]} 35. Bb7 {[%clk 0:00:04.5]} 35... Nb1 {[%clk
0:00:19.8]} 36. Be4 {[%clk 0:00:01.9]} 36... Nd2 {[%clk 0:00:19.1]} 37. Bc2
{[%clk 0:00:01.9]} 37... Nb3 {[%clk 0:00:18.8]} 38. Bd6 {[%clk 0:00:02.2]} 38...
f6 {[%clk 0:00:18.8]} 39. f3 {[%clk 0:00:02.3]} 39... Kf7 {[%clk 0:00:19]} 40.
Bxb3 {[%clk 0:00:02.7]} 40... axb3 {[%clk 0:00:18.5]} 41. Ba3 {[%clk 0:00:03.6]}
41... e5 {[%clk 0:00:18.5]} 42. Kf2 {[%clk 0:00:03.8]} 42... Ke6 {[%clk
0:00:18.9]} 43. Ke1 {[%clk 0:00:03.7]} 43... Kd5 {[%clk 0:00:19]} 44. g3 {[%clk
0:00:02.6]} 44... h5 {[%clk 0:00:18.7]} 45. Kd2 {[%clk 0:00:03]} 45... Kc4
{[%clk 0:00:18.5]} 46. Bb2 {[%clk 0:00:03.2]} 46... Bc6 {[%clk 0:00:17.5]} 47.
f4 {[%clk 0:00:03.5]} 47... Kd5 {[%clk 0:00:16.2]} 48. Bc3 {[%clk 0:00:03]}
48... Ke4 {[%clk 0:00:16.4]} 49. fxe5 {[%clk 0:00:01.2]} 49... fxe5 {[%clk
0:00:16]} 50. Bb2 {[%clk 0:00:01.9]} 50... Bd5 {[%clk 0:00:16.4]} 51. Bc3 {[%clk
0:00:02.2]} 51... Be6 {[%clk 0:00:16.5]} 52. Bb2 {[%clk 0:00:02.6]} 52... g5
{[%clk 0:00:16.8]} 53. Bc3 {[%clk 0:00:03]} 53... h4 {[%clk 0:00:17]} 54. gxh4
{[%clk 0:00:02.9]} 54... gxh4 {[%clk 0:00:17.3]} 55. Bb2 {[%clk 0:00:03.4]}
55... h3 {[%clk 0:00:17.7]} 56. Bc3 {[%clk 0:00:03.6]} 56... Kf5 {[%clk
0:00:17.9]} 57. Bb2 {[%clk 0:00:03.7]} 57... e4 {[%clk 0:00:18.1]} 58. Bc3
{[%clk 0:00:03.4]} 58... Kg4 {[%clk 0:00:18.6]} 59. Be5 {[%clk 0:00:02.9]} 59...
Kf3 {[%clk 0:00:18.6]} 60. Bd6 {[%clk 0:00:01.9]} 60... Kf2 {[%clk 0:00:18.4]}
61. Bg3+ {[%clk 0:00:01.5]} 61... Kg2 {[%clk 0:00:18]} 62. Be5 {[%clk
0:00:02.3]} 62... Bc4 {[%clk 0:00:17.4]} 63. Kc1 {[%clk 0:00:02.2]} 63... Bd3
{[%clk 0:00:17.5]} 64. Kb2 {[%clk 0:00:03.1]} 64... Bc2 {[%clk 0:00:17.7]} 65.
Bf4 {[%clk 0:00:03.8]} 65... Kf3 {[%clk 0:00:18]} 66. Kc3 {[%clk 0:00:04.1]}
66... Ke2 {[%clk 0:00:18]} 67. Kb2 {[%clk 0:00:05]} 67... Kd1 {[%clk 0:00:18.1]}
68. Be5 {[%clk 0:00:05]} 68... Kd2 {[%clk 0:00:18.3]} 69. Bf4 {[%clk 0:00:05.9]}
69... Kd3 {[%clk 0:00:18.4]} 70. Bg5 {[%clk 0:00:06.3]} 70... Kd2 {[%clk
0:00:17.2]} 71. Bf4 {[%clk 0:00:06.8]} 71... Ke2 {[%clk 0:00:17.3]} 72. Bg5
{[%clk 0:00:07.2]} 72... Kf3 {[%clk 0:00:17]} 73. Bf4 {[%clk 0:00:07.9]} 73...
Kg4 {[%clk 0:00:16.3]} 74. Kc3 {[%clk 0:00:08.5]} 74... Bd1 {[%clk 0:00:16]} 75.
Kb2 {[%clk 0:00:09.4]} 75... Kf3 {[%clk 0:00:15.5]} 76. Kc3 {[%clk 0:00:10.3]}
76... Kg2 {[%clk 0:00:14.1]} 77. Kb2 {[%clk 0:00:11.2]} 77... Kf1 {[%clk
0:00:13.7]} 78. Kc3 {[%clk 0:00:12.1]} 78... Bc2 {[%clk 0:00:14]} 79. Kb2 {[%clk
0:00:13]} 79... Ke1 {[%clk 0:00:14.2]} 80. Kc3 {[%clk 0:00:13.9]} 80... Kd1
{[%clk 0:00:14.6]} 81. Kb2 {[%clk 0:00:14.8]} 81... Kd2 {[%clk 0:00:14.3]} 82.
Bg5 {[%clk 0:00:15.4]} 82... Ke2 {[%clk 0:00:13.5]} 83. Bf4 {[%clk 0:00:15.8]}
83... Bd1 {[%clk 0:00:13]} 84. Bg5 {[%clk 0:00:16.2]} 84... Kd3 {[%clk 0:00:13]}
85. Bf4 {[%clk 0:00:16.5]} 85... Kc4 {[%clk 0:00:13.5]} 86. Bg5 {[%clk
0:00:16.8]} 86... Bg4 {[%clk 0:00:13.4]} 87. Bf4 {[%clk 0:00:17.2]} 87... Be6
{[%clk 0:00:13.9]} 88. Bg5 {[%clk 0:00:17.6]} 88... Kd3 {[%clk 0:00:14.1]} 89.
Bf4 {[%clk 0:00:18.2]} 89... Kd2 {[%clk 0:00:14.4]} 90. Bg5 {[%clk 0:00:18.6]}
90... Ke2 {[%clk 0:00:14.3]} 91. Bf4 {[%clk 0:00:19]} 91... Kf3 {[%clk
0:00:14.6]} 92. Bg5 {[%clk 0:00:19.2]} 92... Kg4 {[%clk 0:00:15]} 93. Bf4 {[%clk
0:00:19.6]} 93... Bd5 {[%clk 0:00:15.4]} 94. Kc3 {[%clk 0:00:20.2]} 94... Kf5
{[%clk 0:00:14.9]} 95. Kb2 {[%clk 0:00:20.7]} 95... Kg4 {[%clk 0:00:14.8]} 96.
Kc3 {[%clk 0:00:21.3]} 96... Kf3 {[%clk 0:00:15]} 97. Kb2 {[%clk 0:00:22]} 97...
Ke2 {[%clk 0:00:14.8]} 98. Kc3 {[%clk 0:00:22.5]} 98... Ke1 {[%clk 0:00:14.9]}
99. Kb2 {[%clk 0:00:22.9]} 99... Kd1 {[%clk 0:00:15.1]} 100. Bg5 {[%clk
0:00:22]} 100... Kd2 {[%clk 0:00:15.2]} 101. Bf4 {[%clk 0:00:22.5]} 101... Be6
{[%clk 0:00:15.1]} 102. Bg5 {[%clk 0:00:22.8]} 102... Kd3 {[%clk 0:00:14.4]}
103. Bf4 {[%clk 0:00:23.2]} 103... Kc4 {[%clk 0:00:14.4]} 104. Bg5 {[%clk
0:00:23.7]} 104... Kd3 {[%clk 0:00:14.3]} 1/2-1/2

[Event "*** SCC Grand Prix: Titled Tuesday Blitz"]
[Site "Chess.com"]
[Date "2020.07.14"]
[Round "6"]
[White "Siniauski"]
[Black "jacky72"]
[Result "1-0"]
[WhiteElo "2483"]
[BlackElo "2644"]
[TimeControl "180+1"]
[EndTime "11:09:28 PDT"]
[Termination "Siniauski won by checkmate"]

1. e4 {[%clk 0:03:00.9]} 1... e5 {[%clk 0:02:58.8]} 2. Nf3 {[%clk 0:03:01.2]}
2... Nc6 {[%clk 0:02:59.4]} 3. Bb5 {[%clk 0:03:01.2]} 3... a6 {[%clk 0:02:59.5]}
4. Ba4 {[%clk 0:03:01.6]} 4... d6 {[%clk 0:02:59.9]} 5. c3 {[%clk 0:02:59.6]}
5... Bd7 {[%clk 0:03:00]} 6. O-O {[%clk 0:02:58.3]} 6... g6 {[%clk 0:03:00.4]}
7. d4 {[%clk 0:02:57.4]} 7... Bg7 {[%clk 0:03:00.9]} 8. h3 {[%clk 0:02:48]} 8...
Nf6 {[%clk 0:02:59.7]} 9. Nbd2 {[%clk 0:02:45.9]} 9... O-O {[%clk 0:02:59.1]}
10. Re1 {[%clk 0:02:43.8]} 10... Re8 {[%clk 0:02:58.4]} 11. Bc2 {[%clk
0:02:38.4]} 11... Qe7 {[%clk 0:02:57.6]} 12. Nf1 {[%clk 0:02:33.9]} 12... Qf8
{[%clk 0:02:57.2]} 13. Ng3 {[%clk 0:02:28.5]} 13... Bh6 {[%clk 0:02:56.2]} 14.
Bb3 {[%clk 0:02:15.2]} 14... Rad8 {[%clk 0:02:52.1]} 15. Bg5 {[%clk 0:02:05.8]}
15... Bxg5 {[%clk 0:02:49]} 16. Nxg5 {[%clk 0:02:06.7]} 16... Re7 {[%clk
0:02:49.7]} 17. a3 {[%clk 0:01:37.5]} 17... h6 {[%clk 0:02:48.7]} 18. Nf3 {[%clk
0:01:37.2]} 18... Rde8 {[%clk 0:02:46.2]} 19. Qd3 {[%clk 0:01:33.2]} 19... Qg7
{[%clk 0:02:35.7]} 20. Rad1 {[%clk 0:01:28.8]} 20... h5 {[%clk 0:02:32.4]} 21.
h4 {[%clk 0:01:24]} 21... Bg4 {[%clk 0:02:31.6]} 22. Rd2 {[%clk 0:01:20.6]}
22... Bxf3 {[%clk 0:02:30.3]} 23. Qxf3 {[%clk 0:01:21.5]} 23... Ng4 {[%clk
0:02:28.6]} 24. Red1 {[%clk 0:01:10.7]} 24... Qf6 {[%clk 0:02:26.7]} 25. Qxf6
{[%clk 0:01:08.2]} 25... Nxf6 {[%clk 0:02:27.6]} 26. f3 {[%clk 0:01:07.5]} 26...
Kg7 {[%clk 0:02:22.1]} 27. Kf2 {[%clk 0:01:00.4]} 27... Nd7 {[%clk 0:02:14.6]}
28. Nf1 {[%clk 0:00:57.6]} 28... Nb6 {[%clk 0:02:12.3]} 29. Ne3 {[%clk
0:00:55.5]} 29... Rd8 {[%clk 0:02:10]} 30. Bd5 {[%clk 0:00:48.7]} 30... exd4
{[%clk 0:02:04.5]} 31. cxd4 {[%clk 0:00:44.3]} 31... Nxd5 {[%clk 0:02:04.3]} 32.
Nxd5 {[%clk 0:00:45.2]} 32... Red7 {[%clk 0:02:04.6]} 33. Ne3 {[%clk 0:00:43]}
33... Ne7 {[%clk 0:02:03.9]} 34. d5 {[%clk 0:00:41.5]} 34... c5 {[%clk
0:02:00.5]} 35. dxc6 {[%clk 0:00:41.2]} 35... bxc6 {[%clk 0:02:01.4]} 36. f4
{[%clk 0:00:32.3]} 36... d5 {[%clk 0:02:01.3]} 37. exd5 {[%clk 0:00:31.2]} 37...
cxd5 {[%clk 0:02:00.4]} 38. Rd4 {[%clk 0:00:27.8]} 38... Kf6 {[%clk 0:01:48.2]}
39. Kf3 {[%clk 0:00:24.9]} 39... Nf5 {[%clk 0:01:45.2]} 40. Rxd5 {[%clk
0:00:17.1]} 40... Nxh4+ {[%clk 0:01:40.9]} 41. Kf2 {[%clk 0:00:06.6]} 41... Rxd5
{[%clk 0:01:41.1]} 42. Rxd5 {[%clk 0:00:06.8]} 42... Ra8 {[%clk 0:01:30.5]} 43.
Rd6+ {[%clk 0:00:06.8]} 43... Ke7 {[%clk 0:01:30.8]} 44. Rb6 {[%clk 0:00:07.4]}
44... a5 {[%clk 0:01:30.1]} 45. Rb5 {[%clk 0:00:05.1]} 45... a4 {[%clk
0:01:28.8]} 46. g3 {[%clk 0:00:05.3]} 46... Nf5 {[%clk 0:01:29.2]} 47. Nxf5+
{[%clk 0:00:05.7]} 47... gxf5 {[%clk 0:01:30.1]} 48. Rxf5 {[%clk 0:00:06.4]}
48... Rb8 {[%clk 0:01:30.5]} 49. Re5+ {[%clk 0:00:04.1]} 49... Kf6 {[%clk
0:01:26.2]} 50. Rxh5 {[%clk 0:00:02]} 50... Rxb2+ {[%clk 0:01:25.3]} 51. Kf3
{[%clk 0:00:02.6]} 51... Rb3+ {[%clk 0:01:25.6]} 52. Kg4 {[%clk 0:00:03.3]}
52... Rxa3 {[%clk 0:01:25.9]} 53. Rh6+ {[%clk 0:00:03.9]} 53... Kg7 {[%clk
0:01:21.6]} 54. Ra6 {[%clk 0:00:04.8]} 54... Kf8 {[%clk 0:01:17.7]} 55. Ra7
{[%clk 0:00:04.8]} 55... Kg7 {[%clk 0:01:16.7]} 56. Kf5 {[%clk 0:00:05.1]} 56...
Ra1 {[%clk 0:01:14.8]} 57. g4 {[%clk 0:00:04.9]} 57... a3 {[%clk 0:01:02.7]} 58.
g5 {[%clk 0:00:05.2]} 58... Rb1 {[%clk 0:01:01.1]} 59. Rxa3 {[%clk 0:00:04.2]}
59... Rb7 {[%clk 0:01:00.9]} 60. Ra5 {[%clk 0:00:03.3]} 60... Rc7 {[%clk
0:01:00.7]} 61. Re5 {[%clk 0:00:03.5]} 61... Rd7 {[%clk 0:01:00.7]} 62. Kg4
{[%clk 0:00:03.7]} 62... Ra7 {[%clk 0:01:00.5]} 63. Re4 {[%clk 0:00:03.9]} 63...
Ra1 {[%clk 0:00:59.2]} 64. Re3 {[%clk 0:00:03.1]} 64... Rg1+ {[%clk 0:00:59.4]}
65. Kf5 {[%clk 0:00:03]} 65... Rf1 {[%clk 0:01:00.3]} 66. Ra3 {[%clk 0:00:02.5]}
66... Rb1 {[%clk 0:00:59.9]} 67. Ra7 {[%clk 0:00:02.9]} 67... Rb5+ {[%clk
0:01:00.2]} 68. Kg4 {[%clk 0:00:03.5]} 68... Kg6 {[%clk 0:01:00.6]} 69. Ra6+
{[%clk 0:00:01.7]} 69... Kh7 {[%clk 0:01:00.9]} 70. f5 {[%clk 0:00:02.1]} 70...
Rb1 {[%clk 0:00:59.5]} 71. Ra7 {[%clk 0:00:01.7]} 71... Rg1+ {[%clk 0:00:58.7]}
72. Kf4 {[%clk 0:00:02.3]} 72... Kg8 {[%clk 0:00:58.5]} 73. Ke5 {[%clk
0:00:01.8]} 73... Rxg5 {[%clk 0:00:56.5]} 74. Kf6 {[%clk 0:00:02.2]} 74... Rg1
{[%clk 0:00:57.4]} 75. Ra8+ {[%clk 0:00:02.7]} 75... Kh7 {[%clk 0:00:57.7]} 76.
Kxf7 {[%clk 0:00:03.5]} 76... Rb1 {[%clk 0:00:58.1]} 77. Re8 {[%clk 0:00:03.2]}
77... Ra1 {[%clk 0:00:54.3]} 78. f6 {[%clk 0:00:03.1]} 78... Ra7+ {[%clk
0:00:45.2]} 79. Re7 {[%clk 0:00:03.7]} 79... Ra1 {[%clk 0:00:45.5]} 80. Rb7
{[%clk 0:00:03.2]} 80... Ra2 {[%clk 0:00:41]} 81. Ke7 {[%clk 0:00:01.9]} 81...
Kg6 {[%clk 0:00:39.3]} 82. f7 {[%clk 0:00:02.4]} 82... Re2+ {[%clk 0:00:38.8]}
83. Kf8 {[%clk 0:00:02.8]} 83... Kh7 {[%clk 0:00:35]} 84. Rb6 {[%clk 0:00:02.5]}
84... Re1 {[%clk 0:00:31.5]} 85. Rb5 {[%clk 0:00:02.7]} 85... Kh6 {[%clk
0:00:28.1]} 86. Kg8 {[%clk 0:00:02.1]} 86... Rg1+ {[%clk 0:00:28.4]} 87. Kh8
{[%clk 0:00:02.5]} 87... Rf1 {[%clk 0:00:29.3]} 88. Rb7 {[%clk 0:00:02.4]} 88...
Rf2 {[%clk 0:00:27]} 89. Rb6+ {[%clk 0:00:02.6]} 89... Kg5 {[%clk 0:00:26.2]}
90. Kg7 {[%clk 0:00:02.9]} 90... Rb2 {[%clk 0:00:25.4]} 91. Rxb2 {[%clk
0:00:02.8]} 91... Kh5 {[%clk 0:00:25.9]} 92. f8=Q {[%clk 0:00:03.7]} 92... Kh4
{[%clk 0:00:26.8]} 93. Qa8 {[%clk 0:00:03.9]} 93... Kh5 {[%clk 0:00:27.7]} 94.
Rb7 {[%clk 0:00:04.6]} 94... Kg5 {[%clk 0:00:28.6]} 95. Qc8 {[%clk 0:00:05.3]}
95... Kh4 {[%clk 0:00:29.5]} 96. Rd7 {[%clk 0:00:05.9]} 96... Kg3 {[%clk
0:00:30.4]} 97. Qe8 {[%clk 0:00:05.9]} 97... Kh3 {[%clk 0:00:31.3]} 98. Rf7
{[%clk 0:00:06.5]} 98... Kh2 {[%clk 0:00:32.2]} 99. Qe6 {[%clk 0:00:06.7]} 99...
Kg1 {[%clk 0:00:33.1]} 100. Qg6+ {[%clk 0:00:06.9]} 100... Kh1 {[%clk 0:00:34]}
101. Rf5 {[%clk 0:00:07.3]} 101... Kh2 {[%clk 0:00:34.9]} 102. Rh5# {[%clk
0:00:08.2]} 1-0